[Event "Titled Tuesday Blitz April 11 Late 2023"]
[White "Roebers, Eline"]
[Black "Nakamura, Hikaru"]
[WhiteFideId "1058401"]
[BlackFideId "2016192"]
[WhiteElo "2356"]
[BlackElo "2885"]
[Result "0-1"]
[Round "01"]
[TimeControl "180+2"]
[Date "2023.04.11"]
[WhiteClock "0:00:00"]
[BlackClock "0:00:01"]

1. e4 {[%clk 0:00:01]}  g6 {[%clk 0:00:01]} 2. d4 {[%clk 0:00:01]}  c6 {[%clk 0:00:01]} 3. Nc3 {[%clk 0:00:01]}  d5 {[%clk 0:00:01]} 4. Nf3 {[%clk 0:00:01]}  Bg4 {[%clk 0:00:01]} 5. h3 {[%clk 0:00:01]}  Bxf3 {[%clk 0:00:01]} 6. Qxf3 {[%clk 0:00:01]}  e6 {[%clk 0:00:01]} 7. Bd3 {[%clk 0:00:01]}  Bg7 {[%clk 0:00:01]} 8. Be3 {[%clk 0:00:01]}  Ne7 {[%clk 0:00:01]} 9. O-O-O {[%clk 0:00:01]}  b5 {[%clk 0:00:01]} 10. exd5 {[%clk 0:00:01]}  exd5 {[%clk 0:00:01]} 11. Ne2 {[%clk 0:00:01]}  Nd7 {[%clk 0:00:01]} 12. h4 {[%clk 0:00:01]}  h5 {[%clk 0:00:01]} 13. g4 {[%clk 0:00:00]}  hxg4 {[%clk 0:00:01]} 14. Qxg4 {[%clk 0:00:00]}  Nf6 {[%clk 0:00:01]} 15. Qf3 {[%clk 0:00:00]}  Qd6 {[%clk 0:00:01]} 16. Bf4 {[%clk 0:00:00]}  Bh6 {[%clk 0:00:01]} 17. Kb1 {[%clk 0:00:00]}  Bxf4 {[%clk 0:00:01]} 18. Nxf4 {[%clk 0:00:00]}  O-O-O {[%clk 0:00:01]} 19. h5 {[%clk 0:00:00]}  g5 {[%clk 0:00:01]} 20. Ne2 {[%clk 0:00:00]}  g4 {[%clk 0:00:01]} 21. Qg3 {[%clk 0:00:00]}  Qxg3 {[%clk 0:00:01]} 22. Nxg3 {[%clk 0:00:00]}  Neg8 {[%clk 0:00:01]} 23. Rde1 {[%clk 0:00:00]}  Nh6 {[%clk 0:00:01]} 24. Re5 {[%clk 0:00:00]}  Rde8 {[%clk 0:00:01]} 25. Rhe1 {[%clk 0:00:00]}  Kd8 {[%clk 0:00:01]} 26. Kc1 {[%clk 0:00:00]}  Rxe5 {[%clk 0:00:01]} 27. Rxe5 {[%clk 0:00:00]}  Nd7 {[%clk 0:00:01]} 28. Re1 {[%clk 0:00:00]}  Nf8 {[%clk 0:00:01]} 29. Kd2 {[%clk 0:00:00]}  Ne6 {[%clk 0:00:01]} 30. c3 {[%clk 0:00:00]}  Ke7 {[%clk 0:00:01]} 31. a4 {[%clk 0:00:00]}  a6 {[%clk 0:00:01]} 32. axb5 {[%clk 0:00:00]}  axb5 {[%clk 0:00:01]} 33. Ra1 {[%clk 0:00:00]}  Kf6 {[%clk 0:00:01]} 34. Ra6 {[%clk 0:00:00]}  Rc8 {[%clk 0:00:01]} 35. Ke3 {[%clk 0:00:00]}  Kg5 {[%clk 0:00:01]} 36. Ra7 {[%clk 0:00:00]}  f5 {[%clk 0:00:01]} 37. Kd2 {[%clk 0:00:00]}  f4 {[%clk 0:00:01]} 38. Ne2 {[%clk 0:00:00]}  Rf8 {[%clk 0:00:01]} 39. Re7 {[%clk 0:00:00]}  Rf6 {[%clk 0:00:01]} 40. Re8 {[%clk 0:00:00]}  Nf7 {[%clk 0:00:01]} 41. Rc8 {[%clk 0:00:00]}  Nfd8 {[%clk 0:00:01]} 42. Rb8 {[%clk 0:00:00]}  Kxh5 {[%clk 0:00:01]} 43. Rb6 {[%clk 0:00:00]}  Kh4 {[%clk 0:00:01]} 44. Ra6 {[%clk 0:00:00]}  g3 {[%clk 0:00:01]} 0-1


[Site "https://www.chess.com"]

[Event "Titled Tuesday Blitz April 11 Late 2023"]
[White "Naroditsky, Daniel"]
[Black "Omelja, Artem"]
[WhiteFideId "2026961"]
[BlackFideId "14119846"]
[WhiteElo "2633"]
[BlackElo "2404"]
[Result "1-0"]
[Round "01"]
[TimeControl "180+2"]
[Date "2023.04.11"]
[WhiteClock "0:00:00"]
[BlackClock "0:00:00"]

1. d4 {[%clk 0:00:01]}  Nf6 {[%clk 0:00:01]} 2. Nc3 {[%clk 0:00:01]}  d5 {[%clk 0:00:01]} 3. Bf4 {[%clk 0:00:01]}  c6 {[%clk 0:00:01]} 4. e3 {[%clk 0:00:01]}  g6 {[%clk 0:00:01]} 5. h4 {[%clk 0:00:01]}  h5 {[%clk 0:00:01]} 6. Nf3 {[%clk 0:00:01]}  Bg7 {[%clk 0:00:01]} 7. Qd2 {[%clk 0:00:01]}  Bf5 {[%clk 0:00:01]} 8. Ne5 {[%clk 0:00:01]}  Nbd7 {[%clk 0:00:01]} 9. f3 {[%clk 0:00:01]}  Nxe5 {[%clk 0:00:01]} 10. Bxe5 {[%clk 0:00:01]}  O-O {[%clk 0:00:01]} 11. O-O-O {[%clk 0:00:01]}  Qa5 {[%clk 0:00:01]} 12. Kb1 {[%clk 0:00:01]}  Rfd8 {[%clk 0:00:01]} 13. Bd3 {[%clk 0:00:01]}  Bxd3 {[%clk 0:00:01]} 14. cxd3 {[%clk 0:00:01]}  Nd7 {[%clk 0:00:01]} 15. Bxg7 {[%clk 0:00:01]}  Kxg7 {[%clk 0:00:01]} 16. g4 {[%clk 0:00:01]}  Rh8 {[%clk 0:00:01]} 17. e4 {[%clk 0:00:01]}  e5 {[%clk 0:00:00]} 18. dxe5 {[%clk 0:00:00]}  Nxe5 {[%clk 0:00:00]} 19. gxh5 {[%clk 0:00:00]}  d4 {[%clk 0:00:00]} 20. Ne2 {[%clk 0:00:00]}  Qxd2 {[%clk 0:00:00]} 21. Rxd2 {[%clk 0:00:00]}  Nxf3 {[%clk 0:00:00]} 22. Rdd1 {[%clk 0:00:00]}  Rxh5 {[%clk 0:00:00]} 23. Rhf1 {[%clk 0:00:00]}  Ne5 {[%clk 0:00:00]} 24. Rf4 {[%clk 0:00:00]}  c5 {[%clk 0:00:00]} 25. Ng3 {[%clk 0:00:00]}  Rh7 {[%clk 0:00:00]} 26. h5 {[%clk 0:00:00]}  Re8 {[%clk 0:00:00]} 27. Kc2 {[%clk 0:00:00]}  b5 {[%clk 0:00:00]} 28. b3 {[%clk 0:00:00]}  Rd8 {[%clk 0:00:00]} 29. Rg1 {[%clk 0:00:00]}  Kh8 {[%clk 0:00:00]} 30. Rf6 {[%clk 0:00:00]}  c4 {[%clk 0:00:00]} 31. bxc4 {[%clk 0:00:00]}  bxc4 {[%clk 0:00:00]} 32. dxc4 {[%clk 0:00:00]}  Nxc4 {[%clk 0:00:00]} 33. hxg6 {[%clk 0:00:00]}  fxg6 {[%clk 0:00:00]} 34. Rxg6 {[%clk 0:00:00]}  d3+ {[%clk 0:00:00]} 35. Kc3 {[%clk 0:00:00]}  Ne5 {[%clk 0:00:00]} 36. Re6 {[%clk 0:00:00]}  Rc7+ {[%clk 0:00:00]} 37. Kb3 {[%clk 0:00:00]}  Rb8+ {[%clk 0:00:00]} 38. Ka4 {[%clk 0:00:00]}  Rc4+ {[%clk 0:00:00]} 39. Ka3 {[%clk 0:00:00]}  Rc3+ {[%clk 0:00:00]} 40. Ka4 {[%clk 0:00:00]}  Rc4+ {[%clk 0:00:00]} 41. Ka3 {[%clk 0:00:00]}  Rc5 {[%clk 0:00:00]} 42. Rh6+ {[%clk 0:00:00]}  Kg7 {[%clk 0:00:00]} 43. Nf5+ {[%clk 0:00:00]}  Kf7 {[%clk 0:00:00]} 44. Rg7+ {[%clk 0:00:00]} 1-0


[Site "https://www.chess.com"]

[Event "Titled Tuesday Blitz April 11 Late 2023"]
[White "Lorenzo De La Riva, Lazaro"]
[Black "Bortnyk, Olexandr"]
[WhiteFideId "2268809"]
[BlackFideId "14120828"]
[WhiteElo "2294"]
[BlackElo "2734"]
[Result "0-1"]
[Round "01"]
[TimeControl "180+2"]
[Date "2023.04.11"]
[WhiteClock "0:00:00"]
[BlackClock "0:00:01"]

1. Nf3 {[%clk 0:00:01]}  Nf6 {[%clk 0:00:01]} 2. g3 {[%clk 0:00:01]}  b6 {[%clk 0:00:01]} 3. Bg2 {[%clk 0:00:01]}  Bb7 {[%clk 0:00:01]} 4. O-O {[%clk 0:00:01]}  g6 {[%clk 0:00:01]} 5. b3 {[%clk 0:00:01]}  Bg7 {[%clk 0:00:01]} 6. Bb2 {[%clk 0:00:01]}  O-O {[%clk 0:00:01]} 7. c4 {[%clk 0:00:01]}  Na6 {[%clk 0:00:01]} 8. Nc3 {[%clk 0:00:01]}  c5 {[%clk 0:00:01]} 9. e3 {[%clk 0:00:01]}  e6 {[%clk 0:00:01]} 10. Qe2 {[%clk 0:00:01]}  d5 {[%clk 0:00:01]} 11. d3 {[%clk 0:00:01]}  Qe7 {[%clk 0:00:01]} 12. Rfd1 {[%clk 0:00:01]}  Rfd8 {[%clk 0:00:01]} 13. Rac1 {[%clk 0:00:01]}  Nb4 {[%clk 0:00:01]} 14. a3 {[%clk 0:00:01]}  Nc6 {[%clk 0:00:01]} 15. Na4 {[%clk 0:00:01]}  Rac8 {[%clk 0:00:01]} 16. Rb1 {[%clk 0:00:01]}  Ba8 {[%clk 0:00:01]} 17. Ne5 {[%clk 0:00:01]}  Nxe5 {[%clk 0:00:01]} 18. Bxe5 {[%clk 0:00:01]}  Nd7 {[%clk 0:00:01]} 19. Bxg7 {[%clk 0:00:01]}  Kxg7 {[%clk 0:00:01]} 20. cxd5 {[%clk 0:00:01]}  Bxd5 {[%clk 0:00:01]} 21. Bxd5 {[%clk 0:00:01]}  exd5 {[%clk 0:00:01]} 22. d4 {[%clk 0:00:01]}  cxd4 {[%clk 0:00:01]} 23. Rxd4 {[%clk 0:00:01]}  Qxa3 {[%clk 0:00:01]} 24. Rxd5 {[%clk 0:00:01]}  Nf6 {[%clk 0:00:01]} 25. Rxd8 {[%clk 0:00:01]}  Rxd8 {[%clk 0:00:01]} 26. Nc3 {[%clk 0:00:01]}  a6 {[%clk 0:00:01]} 27. Rd1 {[%clk 0:00:01]}  Rxd1+ {[%clk 0:00:01]} 28. Qxd1 {[%clk 0:00:01]}  b5 {[%clk 0:00:01]} 29. Nd5 {[%clk 0:00:01]}  Qd6 {[%clk 0:00:01]} 30. e4 {[%clk 0:00:00]}  Nxe4 {[%clk 0:00:01]} 31. Qd4+ {[%clk 0:00:00]}  Nf6 {[%clk 0:00:01]} 32. g4 {[%clk 0:00:00]}  Qxd5 {[%clk 0:00:01]} 0-1


[Site "https://www.chess.com"]

[Event "Titled Tuesday Blitz April 11 Late 2023"]
[White "Duda, Jan-Krzysztof"]
[Black "Dobre, Claudiu-Cristian"]
[WhiteFideId "1170546"]
[BlackFideId "1211854"]
[WhiteElo "2790"]
[BlackElo "2207"]
[Result "1-0"]
[Round "01"]
[TimeControl "180+2"]
[Date "2023.04.11"]
[WhiteClock "0:00:01"]
[BlackClock "0:00:00"]

1. e4 {[%clk 0:00:01]}  e5 {[%clk 0:00:01]} 2. Nf3 {[%clk 0:00:01]}  Nf6 {[%clk 0:00:01]} 3. Nxe5 {[%clk 0:00:01]}  d6 {[%clk 0:00:01]} 4. Nf3 {[%clk 0:00:01]}  Nxe4 {[%clk 0:00:01]} 5. Nc3 {[%clk 0:00:01]}  Nf6 {[%clk 0:00:01]} 6. d4 {[%clk 0:00:01]}  Be7 {[%clk 0:00:01]} 7. Bd3 {[%clk 0:00:01]}  O-O {[%clk 0:00:01]} 8. h3 {[%clk 0:00:01]}  Re8 {[%clk 0:00:01]} 9. O-O {[%clk 0:00:01]}  Nbd7 {[%clk 0:00:01]} 10. Bf4 {[%clk 0:00:01]}  b6 {[%clk 0:00:01]} 11. a4 {[%clk 0:00:01]}  a6 {[%clk 0:00:01]} 12. d5 {[%clk 0:00:01]}  Bb7 {[%clk 0:00:01]} 13. Nd4 {[%clk 0:00:01]}  Bf8 {[%clk 0:00:01]} 14. Bc4 {[%clk 0:00:01]}  Ne5 {[%clk 0:00:01]} 15. Ba2 {[%clk 0:00:01]}  Qd7 {[%clk 0:00:00]} 16. Qd2 {[%clk 0:00:01]}  h6 {[%clk 0:00:00]} 17. b4 {[%clk 0:00:01]}  Ng6 {[%clk 0:00:00]} 18. Bg3 {[%clk 0:00:01]}  Ne4 {[%clk 0:00:00]} 19. Nxe4 {[%clk 0:00:01]}  Rxe4 {[%clk 0:00:00]} 20. c4 {[%clk 0:00:01]}  Rae8 {[%clk 0:00:00]} 21. Bb1 {[%clk 0:00:01]}  R4e7 {[%clk 0:00:00]} 22. Bf5 {[%clk 0:00:01]}  Qd8 {[%clk 0:00:00]} 23. a5 {[%clk 0:00:01]}  Ne5 {[%clk 0:00:00]} 24. Bd3 {[%clk 0:00:01]}  g6 {[%clk 0:00:00]} 25. Bh4 {[%clk 0:00:01]}  g5 {[%clk 0:00:00]} 26. Bg3 {[%clk 0:00:01]}  Nxd3 {[%clk 0:00:00]} 27. Qxd3 {[%clk 0:00:01]}  Bc8 {[%clk 0:00:00]} 28. Nc6 {[%clk 0:00:01]}  Qd7 {[%clk 0:00:00]} 29. Nxe7+ {[%clk 0:00:01]}  Qxe7 {[%clk 0:00:00]} 30. axb6 {[%clk 0:00:01]}  cxb6 {[%clk 0:00:00]} 31. f3 {[%clk 0:00:01]}  Qf6 {[%clk 0:00:00]} 32. Rae1 {[%clk 0:00:01]}  Rxe1 {[%clk 0:00:00]} 33. Rxe1 {[%clk 0:00:01]}  Bg7 {[%clk 0:00:00]} 34. Re8+ {[%clk 0:00:01]} 1-0


[Site "https://www.chess.com"]

[Event "Titled Tuesday Blitz April 11 Late 2023"]
[White "Tomaszewski, Kacper"]
[Black "Lazavik, Denis"]
[WhiteFideId "1127373"]
[BlackFideId "13515110"]
[WhiteElo "2211"]
[BlackElo "2560"]
[Result "0-1"]
[Round "01"]
[TimeControl "180+2"]
[Date "2023.04.11"]
[WhiteClock "0:00:00"]
[BlackClock "0:00:00"]

1. d4 {[%clk 0:00:01]}  Nf6 {[%clk 0:00:01]} 2. c4 {[%clk 0:00:01]}  e6 {[%clk 0:00:01]} 3. Nc3 {[%clk 0:00:01]}  Bb4 {[%clk 0:00:01]} 4. Bf4 {[%clk 0:00:01]}  O-O {[%clk 0:00:01]} 5. e3 {[%clk 0:00:01]}  c5 {[%clk 0:00:01]} 6. dxc5 {[%clk 0:00:01]}  Ne4 {[%clk 0:00:01]} 7. Qc2 {[%clk 0:00:01]}  Nxc3 {[%clk 0:00:01]} 8. bxc3 {[%clk 0:00:01]}  Bxc5 {[%clk 0:00:01]} 9. Bd3 {[%clk 0:00:01]}  h6 {[%clk 0:00:01]} 10. Nf3 {[%clk 0:00:01]}  Be7 {[%clk 0:00:01]} 11. h4 {[%clk 0:00:01]}  d6 {[%clk 0:00:01]} 12. g4 {[%clk 0:00:01]}  e5 {[%clk 0:00:01]} 13. Bg3 {[%clk 0:00:01]}  Bxg4 {[%clk 0:00:01]} 14. Nh2 {[%clk 0:00:01]}  Be6 {[%clk 0:00:01]} 15. Rg1 {[%clk 0:00:01]}  Nd7 {[%clk 0:00:01]} 16. f4 {[%clk 0:00:01]}  exf4 {[%clk 0:00:01]} 17. Bxf4 {[%clk 0:00:01]}  Bxh4+ {[%clk 0:00:01]} 18. Kd2 {[%clk 0:00:01]}  Kh8 {[%clk 0:00:01]} 19. Nf3 {[%clk 0:00:01]}  Ne5 {[%clk 0:00:01]} 20. Nxe5 {[%clk 0:00:01]}  dxe5 {[%clk 0:00:01]} 21. Bxe5 {[%clk 0:00:01]}  Bf6 {[%clk 0:00:01]} 22. Bd4 {[%clk 0:00:01]}  Bxd4 {[%clk 0:00:01]} 23. cxd4 {[%clk 0:00:01]}  Qa5+ {[%clk 0:00:01]} 24. Qc3 {[%clk 0:00:01]}  Qxc3+ {[%clk 0:00:01]} 25. Kxc3 {[%clk 0:00:01]}  Rac8 {[%clk 0:00:01]} 26. Rab1 {[%clk 0:00:01]}  Rc7 {[%clk 0:00:01]} 27. Rb4 {[%clk 0:00:00]}  Rfc8 {[%clk 0:00:01]} 28. Rgb1 {[%clk 0:00:00]}  b6 {[%clk 0:00:01]} 29. a4 {[%clk 0:00:00]}  a5 {[%clk 0:00:01]} 30. Rxb6 {[%clk 0:00:00]}  Bxc4 {[%clk 0:00:01]} 31. Bxc4 {[%clk 0:00:00]}  Rxc4+ {[%clk 0:00:01]} 32. Kd3 {[%clk 0:00:00]}  Rc3+ {[%clk 0:00:01]} 33. Kd2 {[%clk 0:00:00]}  Rc2+ {[%clk 0:00:01]} 34. Kd3 {[%clk 0:00:00]}  R8c3+ {[%clk 0:00:00]} 35. Ke4 {[%clk 0:00:00]}  Re2 {[%clk 0:00:00]} 36. R1b5 {[%clk 0:00:00]}  Rexe3+ {[%clk 0:00:00]} 37. Kd5 {[%clk 0:00:00]}  Rg3 {[%clk 0:00:00]} 38. Kd6 {[%clk 0:00:00]}  Rg6+ {[%clk 0:00:00]} 39. Ke7 {[%clk 0:00:00]}  Rxb6 {[%clk 0:00:00]} 40. Rxb6 {[%clk 0:00:00]}  Rd3 {[%clk 0:00:00]} 41. Rd6 {[%clk 0:00:00]}  f5 {[%clk 0:00:00]} 42. d5 {[%clk 0:00:00]}  f4 {[%clk 0:00:00]} 43. Rd8+ {[%clk 0:00:00]}  Kh7 {[%clk 0:00:00]} 44. d6 {[%clk 0:00:00]}  Re3+ {[%clk 0:00:00]} 45. Kd7 {[%clk 0:00:00]}  g5 {[%clk 0:00:00]} 46. Re8 {[%clk 0:00:00]}  Rd3 {[%clk 0:00:00]} 47. Re6 {[%clk 0:00:00]}  f3 {[%clk 0:00:00]} 48. Rf6 {[%clk 0:00:00]}  g4 {[%clk 0:00:00]} 49. Ke7 {[%clk 0:00:00]}  g3 {[%clk 0:00:00]} 50. d7 {[%clk 0:00:00]}  f2 {[%clk 0:00:00]} 51. Rd6 {[%clk 0:00:00]}  Rxd6 {[%clk 0:00:00]} 52. Kxd6 {[%clk 0:00:00]}  f1=Q {[%clk 0:00:00]} 0-1


[Site "https://www.chess.com"]

[Event "Titled Tuesday Blitz April 11 Late 2023"]
[White "Hnydiuk, Aleksander"]
[Black "Bluebaum, Matthias"]
[WhiteFideId "1109057"]
[BlackFideId "24651516"]
[WhiteElo "2374"]
[BlackElo "2638"]
[Result "0-1"]
[Round "01"]
[TimeControl "180+2"]
[Date "2023.04.11"]
[WhiteClock "0:00:00"]
[BlackClock "0:00:01"]

1. e4 {[%clk 0:00:01]}  e6 {[%clk 0:00:01]} 2. d4 {[%clk 0:00:01]}  d5 {[%clk 0:00:01]} 3. e5 {[%clk 0:00:01]}  c5 {[%clk 0:00:01]} 4. c3 {[%clk 0:00:01]}  Nc6 {[%clk 0:00:01]} 5. Nf3 {[%clk 0:00:01]}  Nge7 {[%clk 0:00:01]} 6. a3 {[%clk 0:00:01]}  Bd7 {[%clk 0:00:01]} 7. b4 {[%clk 0:00:01]}  cxd4 {[%clk 0:00:01]} 8. cxd4 {[%clk 0:00:01]}  Nf5 {[%clk 0:00:01]} 9. Bb2 {[%clk 0:00:01]}  b5 {[%clk 0:00:01]} 10. Be2 {[%clk 0:00:01]}  a5 {[%clk 0:00:01]} 11. bxa5 {[%clk 0:00:01]}  Nxa5 {[%clk 0:00:01]} 12. O-O {[%clk 0:00:01]}  Nc4 {[%clk 0:00:01]} 13. Bc3 {[%clk 0:00:01]}  Be7 {[%clk 0:00:01]} 14. Qb3 {[%clk 0:00:01]}  O-O {[%clk 0:00:01]} 15. Bb4 {[%clk 0:00:01]}  Bxb4 {[%clk 0:00:01]} 16. Qxb4 {[%clk 0:00:01]}  Ra4 {[%clk 0:00:01]} 17. Qc3 {[%clk 0:00:01]}  Qe7 {[%clk 0:00:01]} 18. Nbd2 {[%clk 0:00:01]}  Rfa8 {[%clk 0:00:01]} 19. Rfb1 {[%clk 0:00:00]}  Rxa3 {[%clk 0:00:01]} 20. Rxa3 {[%clk 0:00:00]}  Rxa3 {[%clk 0:00:01]} 21. Qc1 {[%clk 0:00:00]}  Ra8 {[%clk 0:00:01]} 22. Nb3 {[%clk 0:00:00]}  h6 {[%clk 0:00:01]} 23. Bd3 {[%clk 0:00:00]}  Nh4 {[%clk 0:00:01]} 24. Ne1 {[%clk 0:00:00]}  Rc8 {[%clk 0:00:01]} 25. Nc5 {[%clk 0:00:00]}  Nxe5 {[%clk 0:00:01]} 26. Bxb5 {[%clk 0:00:00]}  Nf5 {[%clk 0:00:01]} 27. Bxd7 {[%clk 0:00:00]}  Nxd7 {[%clk 0:00:01]} 28. Rb7 {[%clk 0:00:00]}  Nxd4 {[%clk 0:00:01]} 29. Ned3 {[%clk 0:00:00]} 0-1


[Site "https://www.chess.com"]

[Event "Titled Tuesday Blitz April 11 Late 2023"]
[White "Mortazavi, Ali"]
[Black "Firouzja, Alireza"]
[WhiteFideId "401323"]
[BlackFideId "12573981"]
[WhiteElo "2339"]
[BlackElo "2904"]
[Result "1-0"]
[Round "01"]
[TimeControl "180+2"]
[Date "2023.04.11"]
[WhiteClock "0:00:00"]
[BlackClock "0:00:00"]

1. Nf3 {[%clk 0:00:01]}  Nf6 {[%clk 0:00:01]} 2. g3 {[%clk 0:00:01]}  d5 {[%clk 0:00:01]} 3. Bg2 {[%clk 0:00:01]}  e6 {[%clk 0:00:01]} 4. O-O {[%clk 0:00:01]}  Be7 {[%clk 0:00:01]} 5. d3 {[%clk 0:00:01]}  O-O {[%clk 0:00:01]} 6. Nbd2 {[%clk 0:00:01]}  b6 {[%clk 0:00:01]} 7. e4 {[%clk 0:00:01]}  dxe4 {[%clk 0:00:01]} 8. Ng5 {[%clk 0:00:01]}  Bb7 {[%clk 0:00:01]} 9. a4 {[%clk 0:00:01]}  c5 {[%clk 0:00:01]} 10. a5 {[%clk 0:00:01]}  Nbd7 {[%clk 0:00:01]} 11. Ngxe4 {[%clk 0:00:01]}  Qc7 {[%clk 0:00:01]} 12. Re1 {[%clk 0:00:01]}  Rfd8 {[%clk 0:00:01]} 13. a6 {[%clk 0:00:01]}  Bc6 {[%clk 0:00:01]} 14. Qe2 {[%clk 0:00:01]}  Nd5 {[%clk 0:00:01]} 15. Nc4 {[%clk 0:00:01]}  Rac8 {[%clk 0:00:01]} 16. c3 {[%clk 0:00:01]}  Nf8 {[%clk 0:00:01]} 17. h4 {[%clk 0:00:01]}  h6 {[%clk 0:00:01]} 18. h5 {[%clk 0:00:00]}  Nh7 {[%clk 0:00:01]} 19. Bd2 {[%clk 0:00:00]}  f5 {[%clk 0:00:01]} 20. Nxc5 {[%clk 0:00:00]}  Bxc5 {[%clk 0:00:01]} 21. Qxe6+ {[%clk 0:00:00]}  Kh8 {[%clk 0:00:00]} 22. Ne5 {[%clk 0:00:00]}  Nf8 {[%clk 0:00:00]} 23. Nf7+ {[%clk 0:00:00]}  Kh7 {[%clk 0:00:00]} 24. Qxf5+ {[%clk 0:00:00]}  Kg8 {[%clk 0:00:00]} 25. Nxd8 {[%clk 0:00:00]}  Rxd8 {[%clk 0:00:00]} 26. d4 {[%clk 0:00:00]}  Ne7 {[%clk 0:00:00]} 27. Qg4 {[%clk 0:00:00]}  Bxg2 {[%clk 0:00:00]} 28. Bxh6 {[%clk 0:00:00]}  Nc8 {[%clk 0:00:00]} 29. dxc5 {[%clk 0:00:00]}  Ba8 {[%clk 0:00:00]} 30. Bg5 {[%clk 0:00:00]}  Qc6 {[%clk 0:00:00]} 31. f3 {[%clk 0:00:00]}  Rd7 {[%clk 0:00:00]} 32. Re3 {[%clk 0:00:00]}  Qxc5 {[%clk 0:00:00]} 33. Re1 {[%clk 0:00:00]}  Nd6 {[%clk 0:00:00]} 34. Kh2 {[%clk 0:00:00]}  Nf7 {[%clk 0:00:00]} 35. Bf6 {[%clk 0:00:00]}  Nh6 {[%clk 0:00:00]} 36. Qg5 {[%clk 0:00:00]}  Rd2+ {[%clk 0:00:00]} 37. R1e2 {[%clk 0:00:00]}  Rxe2+ {[%clk 0:00:00]} 38. Rxe2 {[%clk 0:00:00]}  Qxg5 {[%clk 0:00:00]} 39. Bxg5 {[%clk 0:00:00]}  Nf7 {[%clk 0:00:00]} 40. Re8 {[%clk 0:00:00]} 1-0


[Site "https://www.chess.com"]

[Event "Titled Tuesday Blitz April 11 Late 2023"]
[White "Sadhwani, Raunak"]
[Black "Silva, Caio Henrique Angelico"]
[WhiteFideId "35093487"]
[BlackFideId "22777210"]
[WhiteElo "2631"]
[BlackElo "2096"]
[Result "1-0"]
[Round "01"]
[TimeControl "180+2"]
[Date "2023.04.11"]
[WhiteClock "0:00:01"]
[BlackClock "0:00:00"]

1. Nf3 {[%clk 0:00:01]}  Nf6 {[%clk 0:00:01]} 2. b3 {[%clk 0:00:01]}  g6 {[%clk 0:00:01]} 3. Bb2 {[%clk 0:00:01]}  Bg7 {[%clk 0:00:01]} 4. g3 {[%clk 0:00:01]}  O-O {[%clk 0:00:01]} 5. Bg2 {[%clk 0:00:01]}  b6 {[%clk 0:00:01]} 6. O-O {[%clk 0:00:01]}  Bb7 {[%clk 0:00:01]} 7. c4 {[%clk 0:00:01]}  c5 {[%clk 0:00:01]} 8. d4 {[%clk 0:00:01]}  cxd4 {[%clk 0:00:01]} 9. Qxd4 {[%clk 0:00:01]}  Nc6 {[%clk 0:00:01]} 10. Qh4 {[%clk 0:00:01]}  d6 {[%clk 0:00:01]} 11. Nc3 {[%clk 0:00:01]}  a6 {[%clk 0:00:01]} 12. Rfd1 {[%clk 0:00:01]}  Qc7 {[%clk 0:00:01]} 13. Rac1 {[%clk 0:00:01]}  Rac8 {[%clk 0:00:01]} 14. Nd5 {[%clk 0:00:01]}  Qd8 {[%clk 0:00:01]} 15. Nxf6+ {[%clk 0:00:01]}  exf6 {[%clk 0:00:01]} 16. Rd2 {[%clk 0:00:01]}  Qe7 {[%clk 0:00:01]} 17. Rcd1 {[%clk 0:00:01]}  Rfd8 {[%clk 0:00:01]} 18. Ba3 {[%clk 0:00:01]}  Qe6 {[%clk 0:00:01]} 19. Nd4 {[%clk 0:00:01]}  Nxd4 {[%clk 0:00:01]} 20. Bxb7 {[%clk 0:00:01]}  Rb8 {[%clk 0:00:00]} 21. Bd5 {[%clk 0:00:01]}  Nf5 {[%clk 0:00:00]} 22. Bxe6 {[%clk 0:00:01]}  Nxh4 {[%clk 0:00:00]} 23. Bh3 {[%clk 0:00:01]}  Nf5 {[%clk 0:00:00]} 24. Bxf5 {[%clk 0:00:01]}  gxf5 {[%clk 0:00:00]} 25. Bxd6 {[%clk 0:00:01]}  Rb7 {[%clk 0:00:00]} 26. Rd5 {[%clk 0:00:01]}  Rbd7 {[%clk 0:00:00]} 27. Bc7 {[%clk 0:00:01]}  Rxd5 {[%clk 0:00:00]} 28. Rxd5 {[%clk 0:00:01]}  Rd7 {[%clk 0:00:00]} 29. Rxd7 {[%clk 0:00:01]} 1-0


[Site "https://www.chess.com"]